[Event "HSK IM Invitational 2022"]
[Site "Hamburg"]
[Date "2022.05.25"]
[Round "7.5"]
[White "Miezis, Normunds"]
[Black "Fischer, Daniel"]
[Result "1-0"]
[ECO "A29"]
[WhiteElo "2452"]
[BlackElo "2367"]
[Annotator "TA"]
[PlyCount "135"]
[EventDate "2022.05.20"]
[EventType "tourn"]
[EventCountry "GER"]
[SourceTitle "playchess.com"]
[Source "ChessBase"]
[SourceQuality "1"]
[TimeControl "40/5400+30:1800+30"]

{[%evp 15,135,0,9,0,0,-1,0,-2,0,-12,0,0,6,16,9,14,6,4,0,10,22,-7,0,0,0,0,22,24,9,3,12,5,16,13,24,24,20,27,18,5,62,39,56,24,29,27,58,20,22,0,0,0,10,0,6,0,0,4,3,0,0,0,10,0,0,0,0,0,0,0,0,0,0,0,3,0,0,0,0,0,0,0,0,-8,0,0,0,0,8,0,0,0,0,-5,44,0,37,0,53,53,53,8,89,14,157,157,185,185,178,170,170,170,170,155,289,93,833,321,742,655,29986,29987]} 1. c4 {[%emt 0:00:07]} Nf6 {[%emt 0:00:09]} 2. Nc3 {[%emt 0:00:44]} e5 {[%emt 0:00:09]} 3. Nf3 {[%emt 0:01:35]} Nc6 {[%emt 0:00:08]} 4. g3 {[%emt 0:00:47]} d5 {[%emt 0:00:10]} 5. cxd5 {[%emt 0:00:09]} Nxd5 {[%emt 0:00:03]} 6. Bg2 {[%emt 0:01:40]} Bc5 {[%emt 0:00:10]} 7. O-O {[%emt 0:01:11]} O-O {[%emt 0:00:07]} 8. d3 {[%emt 0:09:57]} h6 {[%emt 0:00:10]} 9. Bd2 {[%emt 0:03:05][%cal Of3e5] A29: English Opening: Four Knights Variation with 4 g3.} Nf6 {[%emt 0:00:09]} 10. Rc1 {[%emt 0:00:50]} Re8 {[%emt 0:00:09]} 11. a3 {[%emt 0:14:18] The position is equal.} a5 {[%emt 0:00:18] [#]} 12. Nh4 $146 {[%emt 0:05:09]} ({Predecessor:} 12. Na4 Bd6 13. Be3 Rb8 14. Bc5 Bd7 15. Bxd6 cxd6 16. Nc3 b5 17. Nd2 b4 18. Nd5 Nxd5 19. Bxd5 {1-0 (49) Georgiev,K (2587)-Giri,A (2763) Chess.com INT 2020}) 12... Nd4 {[%emt 0:02:46]} 13. e3 {[%emt 0:08:08]} Nf5 {[%emt 0:03:10]} 14. Nxf5 {[%emt 0:04:01]} Bxf5 {[%emt 0:00:04] [#]} 15. Nd5 $1 {[%emt 0:03:38]} Nd7 {[%emt 0:26:19]} 16. d4 {[%emt 0:08:33]} Bd6 {[%emt 0:12:24]} 17. e4 {[%emt 0:07:38]} Be6 {[%emt 0:07:27]} 18. dxe5 {[%emt 0:04:23]} (18. Nxc7 $5 Bxc7 19. d5 $11) 18... Nxe5 {[%emt 0:01:52]} 19. Bc3 {[%emt 0:02:06]} c6 {[%emt 0:06:43]} 20. Nf4 {[%emt 0:02:25]} Bg4 {[%emt 0:08:16]} 21. f3 {[%emt 0:00:12]} Bc8 {[%emt 0:00:45]} 22. Kh1 {[%emt 0:01:13]} Bc7 {[%emt 0:04:56]} 23. Qc2 {[%emt 0:01:31]} Qe7 {[%emt 0:01:22]} 24. Rfd1 {[%emt 0:00:19]} Rd8 {[%emt 0:06:44]} 25. Rxd8+ {[%emt 0:01:39]} Qxd8 {[%emt 0:00:03]} 26. Rd1 {[%emt 0:00:39]} Qe7 {[%emt 0:03:51]} 27. Bd4 {[%emt 0:01:11][%cal Bc3d4,Bd4a7,Ba7c5][%mdl 32]} Rb8 {[%emt 0:02:19]} (27... a4 $11) 28. Ba7 {[%emt 0:06:25][%cal Of4d5] Strongly threatening Nd5! White is more active.} Ra8 {[%emt 0:00:04]} 29. Bc5 {[%emt 0:00:08]} Qe8 {[%emt 0:01:01]} 30. Bd4 {[%emt 0:00:14]} Qe7 {[%emt 0:01:42]} 31. Qc3 {[%emt 0:00:19]} a4 {[%emt 0:01:07]} 32. Nd3 {[%emt 0:01:53]} Nxd3 {[%emt 0:01:49]} 33. Rxd3 {[%emt 0:00:10]} Ba5 {[%emt 0:02:01]} 34. Qc2 {[%emt 0:00:40]} Bc7 {[%emt 0:00:29]} 35. Bc5 {[%emt 0:03:21]} Qf6 {[%emt 0:02:31]} 36. f4 {[%emt 0:01:39]} Be6 {[%emt 0:00:28]} 37. Bd4 {[%emt 0:02:21]} Qe7 {[%emt 0:00:26]} 38. Bc5 {[%emt 0:01:05]} Qe8 {[%emt 0:03:55]} 39. Qd2 {[%emt 0:01:14]} Rd8 {[%emt 0:00:37]} 40. Kg1 {[%emt 0:01:03]} Rxd3 {[%emt 0:02:07]} 41. Qxd3 {[%emt 0:30:09]} Qd7 {[%emt 0:08:37]} 42. Bf1 {[%emt 0:00:00]} b6 {[%emt 0:02:49]} 43. Be3 {[%emt 0:00:00]} c5 {[%emt 0:01:22]} 44. Kf2 {[%emt 0:00:00]} Qc6 {[%emt 0:02:44]} 45. h4 {[%emt 0:00:00]} Bd6 {[%emt 0:03:00]} 46. e5 {[%emt 0:00:00]} Bf8 {[%emt 0:00:46]} 47. Bg2 {[%emt 0:00:00]} Qc7 {[%emt 0:02:37]} 48. Qb5 {[%emt 0:00:00]} Bd7 {[%emt 0:01:59]} 49. Qd3 {[%emt 0:00:00]} Be6 {[%emt 0:01:14]} 50. f5 {[%emt 0:00:00]} Bb3 {[%emt 0:00:25]} 51. Qe4 {[%emt 0:00:00]} Qd7 {[%emt 0:01:03]} 52. g4 {[%emt 0:00:00]} Qd1 {[%emt 0:01:51] Threatens to win with ...Qa1.} 53. g5 {[%emt 0:00:00]} hxg5 {[%emt 0:04:20]} 54. hxg5 {[%emt 0:00:00]} ({Much worse is} 54. Bxg5 Qa1 55. Qe2 c4 $15) 54... Qd7 {[%emt 0:02:47]} (54... Bc2 $11 {should be considered.} 55. Qf4 (55. Bf3 $2 Qb1 $19) 55... Qd3) 55. Bh3 {[%emt 0:00:00]} Qd5 {[%emt 0:00:14]} 56. Qf4 {[%emt 0:00:00]} Qc4 {[%emt 0:00:23]} (56... Qd3 $11) 57. Qxc4 $14 {[%emt 0:02:05]} Bxc4 {[%emt 0:00:01][%mdl 4096] Endgame KBB-KBB} 58. Bf1 {[%emt 0:00:16]} Bb3 {[%emt 0:00:37]} (58... Bxf1 $1 $11 {keeps the balance.} 59. Kxf1 b5) 59. Bb5 {[%emt 0:00:48]} ({Better is} 59. f6 $16) 59... Be7 {[%emt 0:00:54] [#]} (59... f6 $1 $11) 60. f6 $1 $16 {[%emt 0:03:43]} gxf6 {[%emt 0:00:09]} 61. gxf6 {[%emt 0:00:09]} Bd8 {[%emt 0:00:34]} 62. Kf3 {[%emt 0:00:28]} Bc7 {[%emt 0:00:45]} 63. Bf4 {[%emt 0:00:28][%cal Oe5e6] Black must now prevent e6!} Bd8 {[%emt 0:00:45]} 64. Kg4 {[%emt 0:00:27]} Bc2 {[%emt 0:01:29]} (64... Kh8 $16 65. Kf3 Kh7) 65. Kg5 $2 {[%emt 0:00:31]} (65. Bc4 $18) 65... Kh7 $2 {[%emt 0:00:48][%mdl 8192]} (65... Bb3 $16) 66. Bc4 $2 {[%emt 0:01:03]} (66. e6 fxe6 67. Bd6) 66... Bg6 $2 {[%emt 0:00:47]} (66... Kg8 67. e6 fxe6 68. Bxe6+ Kf8) 67. Bg3 $18 {[%emt 0:00:48]} Kg8 {[%emt 0:00:28]} 68. e6 {[%emt 0:00:15] Weighted Error Value: White=0.10 (very precise) /Black=0.17 (very precise)} 1-0

[Event "HSK IM Invitational 2022"]
[Site "Hamburg"]
[Date "2022.05.26"]
[Round "8.1"]
[White "Clarke, Brandon G I"]
[Black "Fischer, Daniel"]
[Result "1-0"]
[ECO "C67"]
[WhiteElo "2445"]
[BlackElo "2367"]
[Annotator "TA"]
[PlyCount "145"]
[EventDate "2022.05.20"]
[EventType "tourn"]
[EventCountry "GER"]
[SourceTitle "playchess.com"]
[Source "ChessBase"]
[SourceQuality "1"]
[TimeControl "40/5400+30:1800+30"]

{[%evp 9,145,23,16,0,12,-9,5,0,19,17,6,10,20,16,35,25,45,30,42,33,34,26,31,32,37,19,25,20,31,22,20,10,15,7,20,18,33,27,25,5,8,0,23,16,28,18,36,18,5,0,10,0,0,-10,0,-14,0,0,4,-25,2,0,0,0,36,0,22,-16,-14,-15,0,0,50,0,0,0,10,25,12,11,52,47,52,39,77,39,56,60,60,60,60,60,60,60,60,60,60,60,60,60,60,60,104,97,245,244,247,108,245,114,223,183,239,188,439,442,427,444,430,350,766,758,757,755,677,581,1272,1168,6103,5719,6111,6110,6087,2663,1627,987,29982,29981]} 1. e4 {[%emt 0:08:03]} e5 {[%emt 0:00:04]} 2. Nf3 {[%emt 0:00:07]} Nc6 {[%emt 0:00:05]} 3. Bb5 {[%emt 0:00:10]} Nf6 {[%emt 0:00:19][%cal Bg8f6,Bf6e4,Be4d6][%mdl 32]} 4. O-O {[%emt 0:00:39]} Nxe4 {[%emt 0:00:10]} 5. Re1 {[%emt 0:00:18]} Nd6 {[%emt 0:00:28]} 6. Bf1 {[%emt 0:00:06] C67: Ruy Lopez: Berlin Defence: 4 0-0 Nxe4.} Be7 {[%emt 0:01:12]} 7. Nc3 $1 {[%emt 0:00:05][%mdl 4] Against e4 outshines the older 7.Nxe5.} O-O {[%emt 0:02:39]} 8. d4 {[%emt 0:00:20] The position is equal.} e4 {[%emt 0:11:13]} 9. Nxe4 {[%emt 0:01:49]} Nxe4 {[%emt 0:00:06]} 10. Rxe4 {[%emt 0:00:04]} d5 {[%emt 0:00:09]} 11. Re1 {[%emt 0:00:16]} Bf5 {[%emt 0:04:00]} 12. c3 {[%emt 0:00:20] [#]} Be4 $146 {[%emt 0:07:12]} ({Predecessor:} 12... Bd6 13. Bb5 Re8 14. Bxc6 bxc6 15. Bg5 f6 16. Bh4 Qd7 17. Qd2 Be4 18. Qe3 Qf5 {0-1 (50) Seemann,J (2294)-Krivonosov,O (2362) Chess.com INT 2021}) 13. g3 {[%emt 0:01:07]} Bf6 {[%emt 0:06:05]} 14. Nd2 {[%emt 0:06:11][%cal Bf3d2,Bd2f1,Bf1e3,Be3g4,Bg4e5,Be5d3,Bd3f4][%mdl 32]} Bf5 {[%emt 0:00:52]} 15. Bg2 {[%emt 0:00:40]} Ne7 {[%emt 0:02:12]} 16. Nf1 {[%emt 0:01:25] Black must now prevent g4.} Nc8 {[%emt 0:04:52]} 17. h4 {[%emt 0:06:33]} c6 {[%emt 0:02:27]} 18. Bf4 {[%emt 1:11:17]} Qd7 {[%emt 0:04:48]} 19. Ne3 {[%emt 0:00:00]} Be6 {[%emt 0:00:43]} 20. Bf3 {[%emt 0:00:00]} Be7 {[%emt 0:01:43]} 21. Ng4 {[%emt 0:00:00]} Bd6 {[%emt 0:03:04]} 22. Ne5 {[%emt 0:00:00]} Qc7 {[%emt 0:03:33]} 23. h5 {[%emt 0:00:00][%cal Bh4h5,Bh5h6][%mdl 32]} Nb6 {[%emt 0:01:50]} 24. b3 {[%emt 0:00:00]} (24. Qd3 {keeps more tension.} Rae8 25. Bd1 Nc4 26. Bc2) 24... Rae8 {[%emt 0:03:38]} 25. Nd3 {[%emt 0:00:00]} Bxf4 {[%emt 0:02:39]} 26. Nxf4 {[%emt 0:00:00][%cal Oh5h6]} Bf5 {[%emt 0:00:44]} 27. h6 {[%emt 0:00:00]} g6 {[%emt 0:03:37]} 28. Qd2 {[%emt 0:00:00]} Qd6 {[%emt 0:01:26]} 29. g4 {[%emt 0:00:00]} Bc8 {[%emt 0:03:42]} 30. Nd3 {[%emt 0:00:00]} f6 {[%emt 0:07:39]} 31. Kg2 {[%emt 0:00:00]} Kf7 {[%emt 0:02:51]} 32. Re3 {[%emt 0:00:00]} Re6 {[%emt 0:07:02]} 33. Rae1 {[%emt 0:00:00]} Rfe8 {[%emt 0:00:42]} 34. Qc2 {[%emt 0:00:00]} Kg8 {[%emt 0:03:02]} 35. Qc1 {[%emt 0:00:00]} Kf7 {[%emt 0:11:12]} 36. Nf4 {[%emt 0:00:00]} R6e7 {[%emt 0:00:00]} (36... Qxf4 $2 37. Rxe6 Qxc1 38. Rxe8 Qxe1 39. Rxe1 $18) 37. R1e2 {[%emt 0:00:00]} Bd7 {[%emt 0:00:00]} 38. Qe1 {[%emt 0:00:00]} Nc8 {[%emt 0:00:00]} 39. Nd3 {[%emt 0:00:00]} Nb6 {[%emt 0:00:00]} 40. a4 {[%emt 0:00:00]} a5 {[%emt 0:00:00]} (40... Nc8 $11) 41. Qh1 {[%emt 0:26:50]} (41. Rxe7+ $14 Rxe7 42. Rxe7+ Qxe7 43. Qd2) 41... Bc8 {[%emt 0:30:50]} 42. Qh4 {[%emt 0:10:37]} Nd7 {[%emt 0:00:00]} 43. g5 {[%emt 0:00:00]} Rxe3 {[%emt 0:00:00]} 44. fxe3 {[%emt 0:00:00]} f5 {[%emt 0:00:00]} (44... fxg5 {is interesting.} 45. Qxg5 Kg8 46. e4 dxe4 47. Rxe4 Rxe4 48. Bxe4 Nf6) 45. Qf4 {[%emt 0:00:00]} (45. Qg3 {seems wilder.} Qa3 46. Nc5 Nxc5 47. Qd6) 45... Qxf4 {[%emt 0:00:00]} 46. Nxf4 {[%emt 0:00:00]} Ke7 {[%emt 0:00:00]} 47. Kf2 {[%emt 0:00:00] 0x0.0024a8b6866bdp-1022s more active pieces.} Kd6 {[%emt 0:00:00]} 48. c4 {[%emt 0:00:00]} dxc4 {[%emt 0:00:00]} 49. bxc4 {[%emt 0:00:00]} b6 {[%emt 0:00:00]} 50. Rc2 {[%emt 0:00:00][%cal Oc4c5]} Ba6 $1 {[%emt 0:00:00]} 51. Nd3 {[%emt 0:00:00] And now c5+ would win.} Kc7 {[%emt 0:00:00]} 52. Rc3 {[%emt 0:00:00]} Nf8 {[%emt 0:01:52]} 53. Nf4 {[%emt 0:00:00]} Nd7 $1 {[%emt 0:06:18]} 54. Ke2 {[%emt 0:00:00]} Kd6 {[%emt 0:00:00]} 55. Kd2 {[%emt 0:00:00]} Re7 {[%emt 0:00:00] White now steadily converts the win.} 56. Nd3 {[%emt 0:00:00] aiming for c5+.} c5 {[%emt 0:00:00]} (56... Kc7 $16 {is a better defense.}) 57. Nf4 $18 {[%emt 0:00:00]} Re8 {[%emt 0:00:00] [#]} 58. Rc1 {[%emt 0:00:00]} (58. Bd5 $1 $18 {is the precise move to win.}) 58... Rc8 {[%emt 0:00:00] [#]} (58... Rb8 $16) 59. Kd3 {[%emt 0:00:00]} (59. Bd5 $1 $18 {and the rest is easy.}) 59... Rd8 {[%emt 0:00:00]} (59... Rb8 $16) 60. Rb1 {[%emt 0:00:00]} Rc8 {[%emt 0:00:00]} (60... Rb8 {was necessary.} 61. Rb2 Bc8) 61. Bd5 {[%emt 0:00:38] Strongly threatening Be6.} Re8 $2 {[%emt 0:00:00] Prevents Be6.} (61... Rb8 {was worth a try.} 62. Rb3 Re8) 62. Bf7 {[%emt 0:02:18]} Rc8 {[%emt 0:01:07]} 63. Be6 {[%emt 0:01:15] Bxd7 is the strong threat.} cxd4 {[%emt 0:00:34]} 64. exd4 {[%emt 0:00:04]} Rb8 $2 {[%emt 0:00:25]} (64... Ke7 65. Re1 Kd6) 65. Bxd7 {[%emt 0:01:22]} Kxd7 {[%emt 0:00:02][%mdl 4096] Endgame KRB-KRN} 66. Nd5 {[%emt 0:00:15]} Kc6 {[%emt 0:01:07]} 67. Re1 {[%emt 0:00:23]} Rd8 {[%emt 0:00:53] Threatens to win with ...Rxd5.} 68. Re6+ {[%emt 0:00:03]} Rd6 {[%emt 0:00:07]} 69. Ne7+ {[%emt 0:00:10]} Kd7 {[%emt 0:00:12]} 70. Rxd6+ {[%emt 0:00:02]} Kxd6 {[%emt 0:00:05] [#]} 71. Nxg6 $1 {[%emt 0:00:14][%mdl 512]} Bb7 {[%emt 0:00:54] [#]} (71... f4 72. Nxf4) 72. d5 $1 {[%emt 0:00:25] Hoping for Nf4.} Bc8 {[%emt 0:00:23]} (72... b5 73. Nf4) 73. Nf4 {[%emt 0:00:44] Weighted Error Value: White=0.13 (very precise) /Black=0.17 (very precise)} 1-0

[Event "HSK IM Invitational 2022"]
[Site "Hamburg"]
[Date "2022.05.26"]
[Round "8.2"]
[White "Hommer, Jeremy"]
[Black "Miezis, Normunds"]
[Result "1/2-1/2"]
[ECO "B22"]
[WhiteElo "2152"]
[BlackElo "2452"]
[Annotator "TA"]
[PlyCount "101"]
[EventDate "2022.05.20"]
[EventType "tourn"]
[EventCountry "GER"]
[SourceTitle "playchess.com"]
[Source "ChessBase"]
[SourceQuality "1"]
[TimeControl "40/5400+30:1800+30"]

{[%evp 13,101,31,26,30,30,30,39,23,16,13,9,20,31,17,37,0,0,-11,0,0,20,22,22,19,78,9,15,15,20,20,20,0,0,0,13,0,6,-10,0,0,0,0,0,0,68,65,112,85,92,85,86,80,86,67,78,0,104,0,56,12,20,38,205,37,44,47,52,52,137,10,10,11,13,17,22,0,0,0,0,0,0,0,0,0,0,0,0,0,0,0]} 1. e4 {[%emt 0:00:03]} c5 {[%emt 0:00:15]} 2. Nf3 {[%emt 0:00:07]} e6 {[%emt 0:00:20]} 3. c3 {[%emt 0:00:10]} d5 {[%emt 0:01:08]} 4. exd5 {[%emt 0:00:07]} exd5 {[%emt 0:00:35]} 5. d4 {[%emt 0:00:09]} Nc6 {[%emt 0:01:22]} 6. Bb5 {[%emt 0:00:08]} Bd6 {[%emt 0:01:51]} 7. dxc5 {[%emt 0:00:16]} Bxc5 {[%emt 0:00:48]} 8. O-O {[%emt 0:00:12] B22: Sicilian: 2 c3.} Nf6 {[%emt 0:07:12]} 9. Bg5 {[%emt 0:00:20]} Be7 {[%emt 0:02:53]} 10. Nbd2 {[%emt 0:15:55][%cal Bb1d2,Bd2b3,Bb3d4][%mdl 32] White is slightly better.} (10. Ne5 {looks sharper.} Qc7 11. Re1 Be6 12. Qa4) 10... O-O {[%emt 0:00:23]} 11. Nb3 {[%emt 0:04:53]} h6 {[%emt 0:06:34]} 12. Bh4 {[%emt 0:00:35] [#]} a6 $146 {[%emt 0:03:25]} ({Predecessor:} 12... Bg4 13. h3 Bh5 14. Re1 Ne4 15. Bxe7 Nxe7 16. Nbd4 Qb6 17. Bd3 Qxb2 18. Bxe4 dxe4 19. Rxe4 {0-1 (29) Berglitz,R (2103)-Gayson,P (2259) Sunningdale 2008}) 13. Bxc6 {[%emt 0:04:49]} bxc6 {[%emt 0:00:09]} 14. Nbd4 {[%emt 0:00:11]} Qc7 {[%emt 0:02:57]} 15. Qc2 {[%emt 0:08:46]} Re8 {[%emt 0:09:10]} 16. Rfe1 {[%emt 0:03:40]} Ne4 {[%emt 0:07:09]} 17. Bxe7 {[%emt 0:00:25]} Rxe7 {[%emt 0:00:08]} 18. c4 {[%emt 0:01:05]} Bg4 {[%emt 0:06:15]} (18... Qb7 $11) 19. Rac1 {[%emt 0:03:25]} (19. cxd5 $16 cxd5 20. Qxc7 Rxc7 21. Ne5) 19... Bxf3 {[%emt 0:02:48]} 20. Nxf3 {[%emt 0:02:24] [#] aiming for cxd5.} Qb6 {[%emt 0:00:24]} 21. cxd5 {[%emt 0:04:46]} cxd5 {[%emt 0:00:08]} 22. Red1 {[%emt 0:00:42]} Rae8 {[%emt 0:01:20]} 23. Nd4 {[%emt 0:05:34]} Qf6 {[%emt 0:10:37]} 24. b3 {[%emt 0:03:55]} Re5 {[%emt 0:05:58]} 25. f3 {[%emt 0:09:06]} Ng5 {[%emt 0:04:30]} 26. Qc6 {[%emt 0:05:22] [#] Qxf6 is the strong threat.} Qf4 {[%emt 0:03:10]} 27. Qxa6 {[%emt 0:02:54]} Ne6 {[%emt 0:02:56]} 28. Nxe6 {[%emt 0:02:37]} R8xe6 {[%emt 0:00:09]} (28... R5xe6 $11 29. Qd3 Re3) 29. Qd3 $14 {[%emt 0:02:57]} Rg6 {[%emt 0:02:24]} (29... g6 $14) 30. Rc2 {[%emt 0:07:32]} Re3 {[%emt 0:04:04]} 31. Qxd5 {[%emt 0:00:46]} ({Avoid the trap} 31. Rc8+ $2 Kh7 32. Qd2 Qxf3 $19) 31... Rxf3 {[%emt 0:01:10]} 32. Rcd2 {[%emt 0:06:31]} Qe3+ {[%emt 0:07:37]} 33. Kh1 {[%emt 0:00:00] Dancing on a razor blade.} Rf4 {[%emt 0:00:39]} 34. Qd3 {[%emt 0:01:30]} ({White should try} 34. h3 $16) 34... Qe5 {[%emt 0:01:47]} (34... Qxd3 $11 {remains equal.} 35. Rxd3 Re4) 35. Qd5 {[%emt 0:00:29]} (35. g3 $16 Re4 36. Qd5) 35... Rgf6 {[%emt 0:01:07]} 36. g3 {[%emt 0:02:13]} (36. Qxe5 $2 {leads to mate.} Rf1+ 37. Rxf1 Rxf1#) 36... Rf1+ $1 {[%emt 0:00:42]} 37. Rxf1 {[%emt 0:01:52]} Rxf1+ $11 {[%emt 0:00:04][%mdl 4096] Endgame KQR-KQR} 38. Kg2 {[%emt 0:00:09]} Qe1 {[%emt 0:00:09]} 39. Qd8+ {[%emt 0:00:46]} Kh7 {[%emt 0:00:02]} 40. Qd3+ {[%emt 0:00:18]} f5 {[%emt 0:00:07]} (40... g6 $1 $14) 41. Qxf1 {[%emt 0:31:35]} ({Better is} 41. a4 $16) 41... Qxd2+ $16 {[%emt 0:30:08] KQ-KQ. The position is equal.} 42. Qf2 {[%emt 0:00:20]} Qd5+ {[%emt 0:00:18]} 43. Kf1 {[%emt 0:00:00]} Qe4 {[%emt 0:00:00]} 44. h4 {[%emt 0:00:00]} g5 {[%emt 0:00:00]} 45. hxg5 {[%emt 0:00:00]} hxg5 {[%emt 0:00:00]} 46. Kg1 {[%emt 0:00:00]} Kg6 {[%emt 0:00:00]} 47. Qg2 {[%emt 0:00:00] And now Qxe4 would win.} Qd4+ {[%emt 0:00:00]} 48. Kh2 {[%emt 0:00:00]} Qh8+ {[%emt 0:00:00]} 49. Kg1 {[%emt 0:00:00] Black must now prevent Qc6+.} Qa1+ {[%emt 0:00:00]} 50. Kh2 {[%emt 0:00:00]} Qh8+ {[%emt 0:00:00]} 51. Kg1 {[%emt 0:00:00] Weighted Error Value: White=0.18 (very precise) /Black=0.17 (very precise)} 1/2-1/2

[Event "HSK IM Invitational 2022"]
[Site "Hamburg"]
[Date "2022.05.26"]
[Round "8.3"]
[White "Bracker, Arne"]
[Black "Kopylov, Daniel"]
[Result "0-1"]
[ECO "B51"]
[WhiteElo "2276"]
[BlackElo "2292"]
[Annotator "TA"]
[PlyCount "134"]
[EventDate "2022.05.20"]
[EventType "tourn"]
[EventCountry "GER"]
[SourceTitle "playchess.com"]
[Source "ChessBase"]
[SourceQuality "1"]
[TimeControl "40/5400+30:1800+30"]

{[%evp 16,134,31,19,31,18,31,25,68,79,161,142,145,142,145,144,126,91,138,119,134,145,225,236,233,237,246,248,237,231,214,224,205,157,147,113,113,113,113,113,113,113,129,129,129,113,113,113,113,113,113,113,129,124,135,124,129,124,113,113,113,113,113,113,124,124,129,129,129,129,129,129,129,127,127,127,127,127,127,127,127,127,127,127,127,127,127,127,127,127,127,127,127,127,127,127,127,127,127,127,127,127,141,86,86,86,86,86,86,-29969,-29970,-29970,-29971,-29971,-29970,-29974,-29972,-29971,-29973,-29973,-29955]} 1. e4 {[%emt 0:00:03]} c5 {[%emt 0:00:08]} 2. Nf3 {[%emt 0:00:08]} Nc6 {[%emt 0:00:18]} 3. Bb5 {[%emt 0:00:10]} d6 {[%emt 0:00:20]} 4. O-O {[%emt 0:00:31]} Bd7 {[%emt 0:00:15]} 5. Re1 {[%emt 0:01:28]} Nf6 {[%emt 0:00:42]} 6. c3 {[%emt 0:00:47][%cal Bc2c3,Bc3d4,Bd4d5][%mdl 32]} a6 {[%emt 0:00:09]} 7. Bf1 {[%emt 0:01:34]} Bg4 {[%emt 0:00:45]} 8. d4 {[%emt 0:00:37]} cxd4 {[%emt 0:04:17]} 9. cxd4 {[%emt 0:00:19]} e5 {[%emt 0:09:24] B51: Sicilian: Moscow Variation (3 Bb5+) without 3...Bd7.} 10. Be3 {[%emt 0:04:28]} Bxf3 {[%emt 0:12:49]} (10... Nxe4 $2 11. d5 $18) 11. gxf3 {[%emt 0:01:01] [#]} g6 $146 {[%emt 0:02:34] White has an edge.} ({Predecessor:} 11... exd4 12. Bxd4 Be7 13. Nc3 Nxd4 14. Qxd4 O-O 15. Rad1 Qa5 16. e5 dxe5 17. Rxe5 Qc7 {½-½ (66) Vedmediuc,S (2454)-Kuzubov,Y (2639) Bucharest 2022}) 12. d5 $1 {[%emt 0:04:16]} Ne7 {[%emt 0:04:35]} (12... Nd4 $16 {might work better.}) 13. a4 {[%emt 0:02:48]} Bg7 {[%emt 0:06:02]} 14. Qb3 {[%emt 0:02:59]} Qd7 {[%emt 0:02:01]} 15. Nd2 {[%emt 0:01:32][%cal Bb1d2,Bd2c4,Bc4b6][%mdl 32]} O-O {[%emt 0:00:50]} 16. Nc4 {[%emt 0:01:39] Black must now prevent Nb6.} Rab8 {[%emt 0:11:51]} (16... Nc8 $142) 17. Nb6 $36 {[%emt 0:04:49][%mdl 2048] White has strong initiative.} Qd8 {[%emt 0:02:41]} 18. Bh3 {[%emt 0:02:27]} Nh5 {[%emt 0:09:48]} (18... Kh8 $16 19. Qb4 Neg8) 19. Nd7 $18 {[%emt 0:03:00]} Nf4 {[%emt 0:02:30]} 20. Bxf4 {[%emt 0:00:09]} (20. Nxb8 Nxh3+ 21. Kg2 Nxf2) 20... exf4 {[%emt 0:00:06]} 21. Nxb8 {[%emt 0:05:15]} Qxb8 {[%emt 0:03:19]} 22. Qb6 {[%emt 0:01:55]} g5 {[%emt 0:03:32]} 23. Rac1 {[%emt 0:09:57]} Ng6 {[%emt 0:04:42]} 24. Bg4 {[%emt 0:03:46]} Bf6 {[%emt 0:11:04]} 25. Qc7 {[%emt 0:04:43]} Bxb2 {[%emt 0:02:24]} 26. Qxb8 {[%emt 0:04:28]} Rxb8 {[%emt 0:00:03]} 27. Rc8+ {[%emt 0:00:56]} Rxc8 {[%emt 0:00:01]} 28. Bxc8 $16 {[%emt 0:00:05][%mdl 4096] Endgame KRB-KBN} b5 {[%emt 0:05:40]} 29. Rb1 {[%emt 0:01:03]} ({Weaker is} 29. Bxa6 bxa4 30. e5 Nxe5 $17) 29... Bc3 {[%emt 0:00:48]} 30. Rc1 {[%emt 0:04:29]} ({Much less strong is} 30. Bxa6 bxa4 31. Rc1 Bb2 $14) 30... Bb4 {[%emt 0:01:04]} 31. axb5 {[%emt 0:18:16]} ({Don't do} 31. Bxa6 bxa4 32. Rc4 Bc5 $18) 31... axb5 {[%emt 0:00:02]} 32. Rb1 {[%emt 0:00:11]} Bc5 {[%emt 0:00:05]} 33. Rxb5 {[%emt 0:00:05]} Ne5 {[%emt 0:00:05]} 34. Kg2 {[%emt 0:00:09]} Nd3 {[%emt 0:00:49]} 35. Rb1 {[%emt 0:08:53]} Kg7 {[%emt 0:00:17]} 36. Ba6 {[%emt 0:00:43]} Ne5 {[%emt 0:00:20]} 37. h3 {[%emt 0:03:19]} Kg6 {[%emt 0:01:39]} 38. Rb8 {[%emt 0:01:25]} Kg7 {[%emt 0:00:16]} 39. Bc8 {[%emt 0:02:01]} Nd3 {[%emt 0:00:46]} 40. Rb1 {[%emt 0:02:28] Inhibits Ne1+.} Kg6 {[%emt 0:00:33]} 41. Bf5+ {[%emt 0:07:06]} Kg7 {[%emt 0:00:22]} 42. Rd1 {[%emt 0:04:06]} Ne5 {[%emt 0:00:15]} 43. h4 {[%emt 0:00:37]} h6 {[%emt 0:01:08]} 44. h5 {[%emt 0:03:55]} Kf6 {[%emt 0:02:25]} 45. Bg4 {[%emt 0:00:39]} Kg7 {[%emt 0:01:10]} 46. Kf1 {[%emt 0:00:10]} Kf6 {[%emt 0:01:25]} 47. Ke2 {[%emt 0:00:07]} Kg7 {[%emt 0:00:12]} 48. Rb1 {[%emt 0:01:38]} Kf6 {[%emt 0:00:30]} 49. Rb7 {[%emt 0:00:25]} Kg7 {[%emt 0:00:30]} 50. Rb8 {[%emt 0:02:03]} Kf6 {[%emt 0:00:45]} 51. Rg8 {[%emt 0:00:39]} Bd4 {[%emt 0:09:23]} 52. Bf5 {[%emt 0:01:28]} Ke7 {[%emt 0:00:27]} 53. Rc8 {[%emt 0:04:57]} Bb2 {[%emt 0:07:27]} 54. Rh8 {[%emt 0:05:49]} Nd7 {[%emt 0:03:34]} 55. Ra8 {[%emt 0:03:30] Hoping for Ra7.} Ne5 {[%emt 0:00:14]} 56. Ra4 {[%emt 0:01:19]} Bc3 {[%emt 0:02:50]} 57. Bg4 {[%emt 0:00:11]} Kf6 {[%emt 0:02:37]} 58. Kd1 {[%emt 0:00:13]} Ke7 {[%emt 0:00:28]} 59. Kc2 {[%emt 0:00:26]} (59. Ra8 $142) 59... Be1 {[%emt 0:00:47]} 60. Ra8 {[%emt 0:00:16]} Bxf2 {[%emt 0:01:57]} 61. Rh8 {[%emt 0:01:02]} Bd4 {[%emt 0:00:38]} 62. Rxh6 $2 {[%emt 0:00:02][%mdl 8192] [#] Loses the game.} (62. Rc8 $16) 62... Nxg4 {[%emt 0:00:48] Black mates.} 63. fxg4 {[%emt 0:00:04] KR-KB} Be5 {[%emt 0:00:14]} 64. Rh7 {[%emt 0:02:01]} Kf8 {[%emt 0:00:25]} 65. h6 {[%emt 0:00:12]} Kg8 {[%emt 0:00:14][%mdl 64] [#] Trapped Piece} 66. Rg7+ {[%emt 0:00:18]} Bxg7 {[%emt 0:00:08]} 67. hxg7 {[%emt 0:00:05]} f6 {[%emt 0:00:32] Weighted Error Value: White=0.05 (flawless) /Black=0.08 (flawless)} 0-1